Cogmind - Beta 16 @@@ ROGUE MODE // 2026.02.06 @ 15:17:27 Player: luckinvolved Result: Destroyed by 3X-XU1(R) with Subdweller Laser Performance ------------- Evolutions (0) 0 Regions Visited (2) 400 Robots Destroyed (33) 165 Value Destroyed (716) 716 Prototype IDs (0) 0 Alien Tech Used (0) 0 Bonus (0) 0 TOTAL SCORE: 1281 Bonus ------- None Cogmind --------- Core Integrity 0/250 Matter 300/300 Energy 100/100 System Corruption 0% Temperature Cool (6) Movement Treading (160) Location -10/Subcaves Parts ------- > --- POWER (1) -------- (None) > --- PROPULSION (2) --- Light Treads Spiked Treads > --- UTILITY (2) ------ (None) > --- WEAPON (2) ------- Subdweller Laser Subdweller Machine Gun > --- INVENTORY (5) ---- Seismic Detector Utility Shielding Hacking Suite Barrage Gun Peak State ------------ > --- POWER ------------ Improved Ion Engine > --- PROPULSION ------- Light Treads Spiked Treads > --- UTILITY ---------- Light Humpback > --- WEAPON ----------- Subdweller Laser Subdweller Machine Gun > --- INVENTORY -------- Improved Ion Engine Subdweller Power Source Subdweller Power Source Light Treads Light Treads Wheel Heat Sink Large Storage Unit Subdweller Optics Seismic Detector Seismic Detector Utility Shielding Light Armor Plating Hacking Suite Spread Laser Spread Laser Subdweller Laser Subdweller Laser Light Assault Rifle Barrage Gun Grenade Launcher Mining Laser Multitool Scrap Shield Fragment Scrap Shield Fragment [Rating: 15] Favorites ----------- Power Light Ion Engine Engine Light Ion Engine Propulsion Light Treads Treads Light Treads Leg Aluminum Leg Utility Seismic Detector Device Seismic Detector Storage Large Storage Unit Protection Scrap Shield Weapon Assault Rifle Energy Gun Subdweller Laser Ballistic Gun Assault Rifle Launcher Grenade Launcher Build | -11 -10 -10 ------- Run | Yrd Mat Sub Slots Evolved . | . . . Power . | . . . Propulsion . | . . . Utility . | . . . Weapon . | . . . Parts Attached 18 | 3 7 8 Power 3 | . 1 2 Engine 3 | . 1 2 Core . | . . . Reactor . | . . . Propulsion 4 | 2 . 2 Treads 4 | 2 . 2 Leg . | . . . Wheel . | . . . Hover . | . . . Flight . | . . . Utility 5 | 1 2 2 Device 2 | 1 1 . Storage 2 | . 1 1 Processor . | . . . Hackware . | . . . Protection 1 | . . 1 Artifact . | . . . Weapon 6 | . 4 2 Energy Gun 1 | . . 1 Energy Cannon . | . . . Ballistic Gun 4 | . 3 1 Ballistic Cannon . | . . . Launcher 1 | . 1 . Special Weapon . | . . . Impact Weapon . | . . . Slashing Weapon . | . . . Piercing Weapon . | . . . Special Melee Weapon . | . . . Unidentified Prototypes . | . . . Parts Lost 4 | . . 4 Power 1 | . . 1 Propulsion 1 | . . 1 Utility 2 | . . 2 Weapon . | . . . Highest Loss Streak 3 | . . 3 To Critical Strikes . | . . . Average Backups 15 | 6 11 19 Power 2 | 1 1 2 Propulsion 2 | 4 1 2 Utility 4 | . 2 6 Weapon 6 | 1 5 7 Tool/Special . | . . . Unused Backups 31 | 4 10 17 Power 7 | 1 3 3 Propulsion 4 | . 3 1 Utility 7 | 1 1 5 Weapon 12 | 2 3 7 Tool/Special 1 | . . 1 Average Slot Usage (%) 93 | . 100 87 Engine 13 | . 14 13 Treads 28 | . 28 28 Device 8 | . 14 3 Storage 13 | . 14 13 Ballistic Gun 27 | . 27 26 Peak Build Rating 15 | 7 10 15 Average Rating 9 | 6 7 12 On Entrance 7 | 6 7 10 Avg Prop Armor Cover (%) . | . . . Naked Turns . | . . . Heaviest Build 55 | 12 32 55 Greatest Support 40 | 40 40 40 Greatest Overweight (x) 1 | . . 1 Average Overweight (x) . | . . . Largest Inventory Capacity 25 | 8 15 25 Average Capacity 17 | 8 13 21 Most Carried 25 | 7 15 25 Average Carried 15 | 6 11 20 Final Capacity 15 | 8 15 5 Final Carried 15 | 7 15 4 Class Distribution -------------------- 98% | Mutant Dominant Class ---------------- Mutant | -10/Materials Mutant | -10/Subcaves Resources | -11 -10 -10 ----------- Run | Yrd Mat Sub Matter Collected 827 | 298 327 202 Remotely . | . . . Salvage Created 1029 | 178 589 262 Parts 72 | 11 43 18 Haulers Intercepted 1 | . 1 . Recyclers Shooed 1 | . 1 . Parts Field Recycled . | . . . Retrieved Matter . | . . . Parts Self-Destructed . | . . . Prevented . | . . . Parts Restored . | . . . Kills | -11 -10 -10 ------- Run | Yrd Mat Sub Combat Hostiles Destroyed 20 | . 14 6 Guns 14 | . 8 6 AOE 6 | . 6 . Classes Destroyed 9 | 2 6 1 Builder 1 | . 1 . Tunneler 5 | 5 . . Hauler 1 | . 1 . Recycler 2 | 1 1 . Operator 1 | . 1 . Watcher 3 | . 3 . Swarmer 6 | . 6 . Grunt 8 | . 8 . Subdweller 6 | . . 6 Best Kill Streak 4 | 3 4 2 Combat Bots Only 3 | . 3 2 Max Kills in Single Turn 3 | 1 3 1 Gunslinging . | . . . Exploded 3 | . 3 . Melee . | . . . Uniques/NPCs Destroyed . | . . . Combat | -11 -10 -10 -------- Run | Yrd Mat Sub Hostile Shots Fired 91 | . 35 56 Missed 27 | . 11 16 Hits 64 | . 24 40 Projectile 64 | . 24 40 Critical Strikes 1 | . . 1 Damage Taken 1383 | . 268 1115 Core 260 | . 65 195 Absorbed by Shields . | . . . Core Remaining (%) 100 | 100 . . Volleys Fired 97 | 17 45 35 Largest 2 | 2 2 2 Hottest 90 | 40 50 90 Shots Fired 190 | 34 90 66 Gun 187 | 34 87 66 Cannon . | . . . Launcher 3 | . 3 . Special . | . . . Kinetic 174 | 34 87 53 Thermal 13 | . . 13 Explosive 3 | . 3 . Electromagnetic . | . . . Robot Hit Streak 20 | 10 6 20 Robot Miss Streak 3 | 1 3 2 Penetration Max . | . . . Secondary Targets 1 | . . 1 Max Gunslinging Chain 1 | . . 1 Shots Hit Robots 119 | 23 52 44 Core Hits 56 | 8 34 14 Critical Kills 2 | 1 1 . Critical Parts Destroyed . | . . . Critical Strikes 2 | 1 1 . Destroy 2 | 1 1 . Melee Attacks . | . . . Impact . | . . . Slashing . | . . . Piercing . | . . . Sneak Attacks . | . . . Combat Hostiles . | . . . Follow-up Attacks . | . . . Damage Inflicted 1935 | 249 1005 681 Guns 1519 | 249 594 676 Cannons . | . . . Explosions 387 | . 387 . Melee . | . . . Ramming 29 | . 24 5 Kinetic 1289 | 249 594 446 Thermal 230 | . . 230 Explosive 387 | . 387 . Electromagnetic . | . . . Impact . | . . . Slashing . | . . . Piercing . | . . . Highest Corruption . | . . . Average Corruption . | . . . Corruption Purged . | . . . Corruption Blocked . | . . . Overload Shots . | . . . Overflow Damage 10 | . 10 . Projectiles . | . . . Explosions 10 | . 10 . Melee . | . . . Knockbacks . | . . . Impact . | . . . Kinetic . | . . . Secondary . | . . . Self-Inflicted Damage . | . . . Shots . | . . . Rammed 11 | . 2 9 Targets Rammed 13 | . 4 9 Kicked . | . . . Crushed 2 | . 2 . Highest Temperature 12 | . 12 . Average Temperature 7 | . 7 . Received Heat Transfer 405 | . 114 291 Siege Activations . | . . . Martial Activations . | . . . Shielding Activations . | . . . Robots Disrupted . | . . . Combat Hostiles . | . . . Robots Corrupted . | . . . Combat Hostiles . | . . . Parts Fried . | . . . Impact Corruptions . | . . . Robots Melted . | . . . Combat Hostiles . | . . . Parts Melted 2 | . . 2 Heat Transferred 275 | . . 275 Parts Sabotaged . | . . . Parts Stolen . | . . . Parts Stripped . | . . . Power Chain Reactions . | . . . Alert | -11 -10 -10 ------- Run | Yrd Mat Sub Maximum Alert Level . | . . . Low Security (%) 100 | 100 100 . Level 1 . | . . . Level 2 . | . . . Level 3 . | . . . Level 4 . | . . . Level 5 . | . . . High Security . | . . . Max Security . | . . . Peak Influence 162 | 15 162 . Initial . | . . . Average 72 | 2 80 . Influence Increases 488 | 30 458 . Destroy 0b10 Robot/C 280 | . 280 . Destroy 0b10 Robot/NC 65 | 30 35 . Destroy Leader 78 | . 78 . Successful Hack 24 | . 24 . Destroy Structure 26 | . 26 . Lose Combat Pursuer 15 | . 15 . Influence Decreases 488 | 30 371 87 Entered New Map 43 | . . 43 Time Decay 445 | 30 371 44 Squads Dispatched 3 | . 3 . Investigation 2 | . 2 . Extermination . | . . . Reinforcement 1 | . 1 . Assault . | . . . Garrison . | . . . Intercept . | . . . Searches Triggered . | . . . Construction Impeded . | . . . Haulers Reinforced . | . . . Active Scanning Responses . | . . . Cargo Convoy Interrupts . | . . . Stealth | -11 -10 -10 --------- Run | Yrd Mat Sub Distress Signals 2 | . 2 . Communications Jammed . | . . . Distress Signals . | . . . Times Spotted 29 | . 22 7 Peak Tracking Total 4 | . 4 3 Tactical Retreats 1 | . 1 . Traps | -11 -10 -10 ------- Run | Yrd Mat Sub Traps Triggered 4 | . 2 2 Indirectly . | . . . Trap Hack Attempts . | . . . Triggered . | . . . Disarmed . | . . . Reprogrammed . | . . . Reused . | . . . Traps Extracted . | . . . Installed . | . . . Triggered . | . . . Machines | -11 -10 -10 ---------- Run | Yrd Mat Sub Machines Disabled . | . . . Max in Single Turn . | . . . Machines Repaired . | . . . Machines Dismantled . | . . . Machines Sabotaged . | . . . Overloaded Fab Kills . | . . . Hacking | -11 -10 -10 --------- Run | Yrd Mat Sub Machines Accessed 6 | . 6 . Terminals 6 | . 6 . Fabricators . | . . . Repair Stations . | . . . Recycling Units . | . . . Scanalyzers . | . . . Garrison Access . | . . . Total Hacks 25 | . 25 . Successful 12 | . 12 . Failed 13 | . 13 . Catastrophic . | . . . Database Lockouts . | . . . Manual 24 | . 24 . Terminals 25 | . 25 . Fabricators . | . . . Repair Stations . | . . . Recycling Units . | . . . Scanalyzers . | . . . Garrison Access . | . . . Terminal Hacks 6 | . 6 . Part Schematic 3 | . 3 . Robot Analysis 3 | . 3 . Fabricator Hacks . | . . . Repair Station Hacks . | . . . Recycling Unit Hacks . | . . . Scanalyzer . | . . . Garrison Access Hacks . | . . . Unauthorized Hacks 6 | . 6 . Terminals 6 | . 6 . Botnet 1 | . 1 . Skim 5 | . 5 . Fabricators . | . . . Repair Stations . | . . . Recycling Units . | . . . Scanalyzers . | . . . Garrison Access . | . . . Data Cores Recovered . | . . . Used . | . . . Hacking Detections 6 | . 6 . Full Trace Events . | . . . Feedback Events . | . . . Feedback Blocked . | . . . Robot Schematics Acquired . | . . . Robots Built . | . . . Authchips . | . . . Time . | . . . Total Robot Build Rating . | . . . Part Schematics Acquired 3 | . 3 . Parts Built . | . . . Authchips . | . . . Time . | . . . Total Part Build Rating . | . . . Part Studies Acquired . | . . . Parts Repaired . | . . . Time . | . . . Parts Recycled . | . . . Recycled Matter . | . . . Retrieved Matter . | . . . Retrieved Components . | . . . Parts Scanalyzed . | . . . Part Schematics Acquired . | . . . Parts Damaged . | . . . Bothacking | -11 -10 -10 ------------ Run | Yrd Mat Sub Used RIF Installer . | . . . Robots Hacked . | . . . Non-combat . | . . . Combat . | . . . Robot Hacks Applied . | . . . Relay Couplers Released . | . . . Fabnet Peak Effective % . | . . . Robots Rewired . | . . . Allies Hacked . | . . . Hacks Repelled . | . . . Allies | -11 -10 -10 -------- Run | Yrd Mat Sub Total Allies . | . . . Largest Group . | . . . Highest-Rated Group . | . . . Highest-Rated Ally . | . . . Total Orders . | . . . Ally Attacks . | . . . Total Damage . | . . . Kills . | . . . Allies Corrupted . | . . . Allies Melted . | . . . Intel | -11 -10 -10 ------- Run | Yrd Mat Sub Active Infowar (turns) 1932 | 61 1503 368 Seismic 1932 | 61 1503 368 Robot Analysis Total 3 | . 3 . Derelict Logs Recovered . | . . . Drone Launches . | . . . Drone Recoveries . | . . . Exploration | -11 -10 -10 ------------- Run | Yrd Mat Sub Turns Passed 3286 | 164 1503 1619 Spaces Moved 1255 | 47 651 557 Core . | . . . Treads 1255 | 47 651 557 Legs . | . . . Wheels . | . . . Hover . | . . . Flight . | . . . Fastest Speed 160 | 160 160 160 Average Speed 182 | 160 160 210 Slowest Speed 250 | 160 160 250 Overloaded Moves . | . . . Propulsion Burnouts . | . . . Robots Hopped . | . . . Potential Cave-ins . | . . . Cave-ins Triggered . | . . . Exploration Rate (%) 41 | 3 96 26 Regions Visited 2 Branch Regions 1 Pre-discovered Areas 2 | . 2 . Known Exits Taken 1 | . 1 . Unknown Exits Taken 1 | 1 . . Scrap Searched 3 | . . 3 Spaces Dug . | . . . Terrain Destroyed 23 | . 23 . Melee . | . . . Projectile . | . . . AOE 23 | . 23 . Terrain Rammed . | . . . Walls Destroyed . | . . . Machines Disabled . | . . . Actions | -11 -10 -10 --------- Run | Yrd Mat Sub Total 2066 | 104 1029 933 Wait 617 | 37 291 289 Move 1253 | 46 650 557 Hop . | . . . Pick Up 43 | 1 17 25 Fast Attach 4 | 1 . 3 Attach 1 | . . 1 Detach . | . . . Swap 15 | 2 9 4 Drop 23 | . 13 10 Fire 97 | 17 45 35 Melee . | . . . Ram . | . . . Kick . | . . . Crush 13 | . 4 9 Escape Stasis . | . . . Rewire . | . . . Trap . | . . . Miscellaneous . | . . . Route ------- -11/Scrapyard -10/Materials (discovered 6 exits: [*Mat x3] / *Min x2 / *Sub) -10/Subcaves (discovered 3 exits: *Mat x2 / Rec) History --------- Turn | Location | Event 52 | -11/Scrapyard | Discovered new exit (range 2) 165 | -11/Scrapyard | Entered Materials 305 | -10/Materials | Build established: Mutant 503 | -10/Materials | Discovered new exit (range 15) 736 | -10/Materials | Discovered new exit (range 9) 819 | -10/Materials | Discovered new exit (range 9) 928 | -10/Materials | Discovered new exit (range 16) 1444 | -10/Materials | Learned 4 Recycling zone layouts 1485 | -10/Materials | Learned location of Storage (-7) 1514 | -10/Materials | Learned location of 2 exits from Subcaves 1523 | -10/Materials | Discovered new exit (range 15) 1535 | -10/Materials | Learned Recycling recycling unit intel 1545 | -10/Materials | Identified exit to Mines 1546 | -10/Materials | Loaded intel: 17 trap records 1547 | -10/Materials | Learned 2 Materials zone layouts 1548 | -10/Materials | Learned Materials trap positions 1561 | -10/Materials | Identified exit to Subcaves 1668 | -10/Materials | Entered Subcaves 1669 | -10/Subcaves | Approached by a straggling Scientist 1669 | -10/Subcaves | Identified exit to Materials 1670 | -10/Subcaves | Identified exit to Recycling 1675 | -10/Subcaves | Shifting Twisted Machinery released Sub. Laser 1677 | -10/Subcaves | Shifting Twisted Machinery released Multitool 2164 | -10/Subcaves | Shifting Twisted Machinery released Sub. Power Source 2200 | -10/Subcaves | Shifting Twisted Machinery released Spk. Treads 3058 | -10/Subcaves | Core integrity fell below 50% 3218 | -10/Subcaves | Core integrity fell below 20% 3236 | -10/Subcaves | Lost 3 parts (1p1n1u) 3287 | -10/Subcaves | Destroyed by 3X-XU1(R) with Subdweller Laser Last Messages --------------- 03210_ YR-AEN(R) affixes Scrap Shield Fragment to Scrap Shield. 03213_ Subatomizers dissect the Imp. Ion Engine, destroying it. 03213_ Q8-X7Q(R) affixes Scrap Shield Fragment to Scrap Shield. 03216_ Acquired 53 matter. 03217_ Q8-X7Q(R) affixes Scrap Shield Fragment to Scrap Shield. 03219_ Acquired Scrap Shield. 03225_ Subatomizers dissect the Disposable Heat Sink. 03226_ YR-AEN(R) destroyed. 03232_ Sub. Monowheel melted. 03232_ Q8-X7Q(R) destroyed. 03235_ Acquired 40 matter. 03236_ Subatomizers dissect the Disposable Heat Sink. 03265_ Sub. Laser shoots sparks and powers down. 03268_ Sub. Machine Gun shoots sparks and powers down. 03269_ Critical hit (Destroy). 03269_ Scrap Shield destroyed. 03270_ Slammed into 3X-XU1(R). 03275_ Subatomizers dissect the Disposable Heat Sink. 03275_ Slammed into 3X-XU1(R). 03286_ 3X-XU1(R) affixes Scrap Shield Fragment to Scrap Shield. Map ----- +----------------------------------------------------+ | ?????????????????????????????????????????????????? | | ?????????????????????????????????????????????????? | | ?????????????????????????????????????????????????? | | ?????????????????????????????????????????????????? | | ?????????????????????????????????##??????????????? | | ???????????????????????????????? ##?????????????? | | ##?????????????????????????????# #?????????????? | | #??????????????????????####### ##????????????? | | ##????????????????????## & #####????????? | | #????????????????????#|!|]& ????? | | #???????????????###??##!=**! ????? | | #???????????????# #### =## ????? | | ##???????????????# =[[*###### ?????? | | #????????????????# !!%*##??##?## ?????? | | #????????????????#### !! [*##? #??? ??????? | | #??????????????????## [[= #? ???? ??????? | | #?????????????????## ##? ?????? ??????? | | ##?????????????????# ##### ??????????????? | | #??????????????????# # ##??# ???????????????? | | #??????????????????# # #??# #???????????????? | | ???????????????????#### ##??# ????????????????? | | ?????????????????????# #??# #????????????????? | | #????????????????????##" "#??# ##???????????????? | | #?????????????######### !##?## % #???????????????? | | #?????????????#""## ##!&%#### #???????????????? | | #????????????## "" %%[@%% ##??????????????? | | #????????###?# " % % [ #??????????????? | | #?######## #### # # R%! #?????????????? | | ### ## ### ###### ### & #?????????????? | | ## "##??# #?# ## #????????????? | | ^^###" ""#?# ?# ##?# #????????????? | | "##" "#?## ## ???# "???????????? | | # ##" "" #??# # ???? ""??????????? | | ### # "##?? " ## #????"#"""?????????? | | ##^ ""#??? " ##" #????""""#?????????? | | # ^ "###??? "" #????? ??????????? | | ###???? <"#?###??????????????????? | | # ####""" ##?????? #??????????????????????? | | ###???########??????? ?##???????????????????????? | | ?????????????????????##??????????????????????????? | | ?????????????????????????????????????????????????? | | ?????????????????????????????????????????????????? | | ?????????????????????????????????????????????????? | | ?????????????????????????????????????????????????? | | ?????????????????????????????????????????????????? | | ?????????????????????????????????????????????????? | | ?????????????????????????????????????????????????? | | ?????????????????????????????????????????????????? | | ?????????????????????????????????????????????????? | | ?????????????????????????????????????????????????? | +----------------------------------------------------+ Best States ------------- Heat Dissipation 25 Energy Generation 15 Energy Capacity 265 Matter Stores 300 Matter Capacity 300 Sight Range 16 Terrain Scan Density 10 Armor Coverage 800 Evasion (%) 40 Recoil Reduction 2 Item Schematics ----------------- Huge Storage Unit | -10/Materials | Hacked Signal Interpreter | -10/Materials | Hacked Hcp. Storage Unit | -10/Materials | Hacked Robot Schematics ------------------ None Fabricated ------------ Nothing Repaired ---------- Nothing Studied --------- None Alien Tech Used ----------------- None Achievements -------------- None Challenges ------------ None Game ------ Seed HardlightMagneticMembrane Manual? 0 Play Time 00:16:04 Cumulative 188.5 hours Start 2026.02.06 @ 15:01:33 End 2026.02.06 @ 15:17:27 Sessions 1 Manual Loads 0 Difficulty Rogue Special Mode None Game No. 218 Rogue 213 Adventurer 5 Explorer 0 Win Type - Total 6 Types 5/0/0/1/0/0/0/0/0/0 Lore% 56 Gallery% 66 Achievement% 55 Wizard Run 0 Options --------- Layout 0 ASCII 0 Keyboard 1 Movement Vi Keybinds 0 Fullscreen 1 Font 24/Smallcaps Map View 76x50 Zoom Use 0% Tactical HUD 1 Map Filters NONE Filters NONE Steam 1 RUN: 515f077c-a8df-4cfe-a730-d45d46e18a20